[Event "Late-Titled-Tuesday-Blitz-January-16-2024"]
[Site "Chess.com"]
[Date "2024.01.16"]
[Round "8"]
[White "HajiyevKanan"]
[Black "Kostukov_Alex"]
[Result "1-0"]
[WhiteElo "2556"]
[BlackElo "2310"]
[TimeControl "180+1"]
[EndTime "15:25:13 PST"]
[Termination "HajiyevKanan won by resignation"]

1. d4 {[%clk 0:03:00.9]} 1... g6 {[%clk 0:02:59.8]} 2. Nf3 {[%clk 0:03:01.8]}
2... Bg7 {[%clk 0:03:00.3]} 3. c4 {[%clk 0:03:02.7]} 3... d6 {[%clk 0:03:00.8]}
4. g3 {[%clk 0:03:03.4]} 4... e5 {[%clk 0:03:01]} 5. dxe5 {[%clk 0:03:04.3]}
5... dxe5 {[%clk 0:03:01.4]} 6. Qxd8+ {[%clk 0:03:04.5]} 6... Kxd8 {[%clk
0:03:02.3]} 7. Nc3 {[%clk 0:03:04.9]} 7... f6 {[%clk 0:03:02.8]} 8. Bg2 {[%clk
0:03:04.5]} 8... Nd7 {[%clk 0:03:03.2]} 9. Be3 {[%clk 0:03:05]} 9... c6 {[%clk
0:03:03.8]} 10. O-O-O {[%clk 0:03:05.7]} 10... Bh6 {[%clk 0:03:04.2]} 11. Bxh6
{[%clk 0:03:03.4]} 11... Nxh6 {[%clk 0:03:05.1]} 12. Ne4 {[%clk 0:03:02.5]}
12... Ke7 {[%clk 0:03:04.2]} 13. Bh3 {[%clk 0:03:00.6]} 13... Nf5 {[%clk
0:02:49]} 14. Bxf5 {[%clk 0:02:54.4]} 14... gxf5 {[%clk 0:02:48.6]} 15. Nd6
{[%clk 0:02:55.3]} 15... Nc5 {[%clk 0:02:42]} 16. Nxc8+ {[%clk 0:02:55.5]} 16...
Raxc8 {[%clk 0:02:41.6]} 17. Nh4 {[%clk 0:02:56.4]} 17... Ke6 {[%clk 0:02:39.9]}
18. f3 {[%clk 0:02:52.8]} 18... a5 {[%clk 0:02:38.3]} 19. Rd2 {[%clk 0:02:51.2]}
19... Rcd8 {[%clk 0:02:38.6]} 20. Rhd1 {[%clk 0:02:51.8]} 20... Rxd2 {[%clk
0:02:38.7]} 21. Rxd2 {[%clk 0:02:52.7]} 21... Rg8 {[%clk 0:02:29.6]} 22. Kc2
{[%clk 0:02:52.9]} 22... h5 {[%clk 0:02:26.7]} 23. b3 {[%clk 0:02:52.6]} 23...
f4 {[%clk 0:02:15.8]} 24. gxf4 {[%clk 0:02:52.9]} 24... exf4 {[%clk 0:02:16.7]}
25. Rd4 {[%clk 0:02:52.2]} 25... Ke5 {[%clk 0:02:12.8]} 26. Rd1 {[%clk 0:02:48]}
26... Ne6 {[%clk 0:02:01.9]} 27. Kc3 {[%clk 0:02:44.3]} 27... Rd8 {[%clk
0:01:37.6]} 28. Ng6+ {[%clk 0:02:18.7]} 28... Kf5 {[%clk 0:01:27.9]} 29. Ne7+
{[%clk 0:02:18.8]} 29... Ke5 {[%clk 0:01:28.1]} 30. Rg1 {[%clk 0:02:14.4]} 30...
b5 {[%clk 0:01:16.5]} 31. Nxc6+ {[%clk 0:02:12.1]} 1-0

[Event "Late-Titled-Tuesday-Blitz-January-16-2024"]
[Site "Chess.com"]
[Date "2024.01.16"]
[Round "8"]
[White "adic2020"]
[Black "EcosseKillie"]
[Result "1-0"]
[WhiteElo "2455"]
[BlackElo "2271"]
[TimeControl "180+1"]
[EndTime "15:25:52 PST"]
[Termination "adic2020 won by resignation"]

1. e4 {[%clk 0:03:00.1]} 1... Nf6 {[%clk 0:02:59.6]} 2. e5 {[%clk 0:02:58.3]}
2... Nd5 {[%clk 0:02:59.4]} 3. c4 {[%clk 0:02:56.4]} 3... Nb6 {[%clk 0:02:59.1]}
4. d4 {[%clk 0:02:56.8]} 4... d6 {[%clk 0:02:57.7]} 5. exd6 {[%clk 0:02:57.7]}
5... cxd6 {[%clk 0:02:53.8]} 6. Nc3 {[%clk 0:02:57.5]} 6... g6 {[%clk
0:02:41.5]} 7. Be3 {[%clk 0:02:58]} 7... Bg7 {[%clk 0:02:37.9]} 8. Rc1 {[%clk
0:02:58.2]} 8... O-O {[%clk 0:02:31.8]} 9. b3 {[%clk 0:02:57.6]} 9... d5 {[%clk
0:02:31.8]} 10. c5 {[%clk 0:02:51.3]} 10... N6d7 {[%clk 0:02:32.2]} 11. Nf3
{[%clk 0:02:46.6]} 11... Nf6 {[%clk 0:02:31.9]} 12. h3 {[%clk 0:02:42.3]} 12...
Nc6 {[%clk 0:02:31.6]} 13. Bb5 {[%clk 0:02:33.7]} 13... Bd7 {[%clk 0:02:18.7]}
14. O-O {[%clk 0:02:25.8]} 14... a6 {[%clk 0:02:16.8]} 15. Be2 {[%clk
0:02:12.7]} 15... Bf5 {[%clk 0:02:13.9]} 16. Re1 {[%clk 0:02:08.4]} 16... Ne4
{[%clk 0:02:13.5]} 17. Na4 {[%clk 0:02:00.3]} 17... e5 {[%clk 0:02:04.5]} 18.
dxe5 {[%clk 0:01:57.4]} 18... Nxe5 {[%clk 0:02:05.4]} 19. Nb6 {[%clk 0:01:51.7]}
19... Nxf3+ {[%clk 0:01:50.5]} 20. Bxf3 {[%clk 0:01:49.2]} 20... d4 {[%clk
0:01:34.5]} 21. Bxd4 {[%clk 0:01:27.8]} 21... Bxd4 {[%clk 0:01:15.9]} 22. Bxe4
{[%clk 0:01:26.4]} 1-0

[Event "Late-Titled-Tuesday-Blitz-January-16-2024"]
[Site "Chess.com"]
[Date "2024.01.16"]
[Round "8"]
[White "Roedor"]
[Black "miraitrunks"]
[Result "0-1"]
[WhiteElo "2333"]
[BlackElo "2108"]
[TimeControl "180+1"]
[EndTime "15:26:00 PST"]
[Termination "miraitrunks won by resignation"]

1. d4 {[%clk 0:02:57.5]} 1... Nf6 {[%clk 0:02:55.2]} 2. c4 {[%clk 0:02:57.2]}
2... g6 {[%clk 0:02:36.3]} 3. g3 {[%clk 0:02:57.2]} 3... Bg7 {[%clk 0:02:33.5]}
4. Bg2 {[%clk 0:02:56.4]} 4... O-O {[%clk 0:02:34.1]} 5. Nc3 {[%clk 0:02:56.2]}
5... c6 {[%clk 0:02:34.4]} 6. e4 {[%clk 0:02:54.8]} 6... d6 {[%clk 0:02:34.7]}
7. Nf3 {[%clk 0:02:55]} 7... Bg4 {[%clk 0:02:33.6]} 8. h3 {[%clk 0:02:55.1]}
8... Bxf3 {[%clk 0:02:33.9]} 9. Bxf3 {[%clk 0:02:56]} 9... Nbd7 {[%clk
0:02:33.9]} 10. O-O {[%clk 0:02:55.8]} 10... e5 {[%clk 0:02:34.1]} 11. d5 {[%clk
0:02:55.8]} 11... cxd5 {[%clk 0:02:33.5]} 12. cxd5 {[%clk 0:02:55.9]} 12... a6
{[%clk 0:02:27.9]} 13. a4 {[%clk 0:02:54.4]} 13... Rc8 {[%clk 0:02:27.8]} 14.
Be3 {[%clk 0:02:52.7]} 14... Qa5 {[%clk 0:02:26.6]} 15. Qb3 {[%clk 0:02:45.3]}
15... Rc7 {[%clk 0:02:05.8]} 16. Qa3 {[%clk 0:02:42.4]} 16... Rfc8 {[%clk
0:01:58.8]} 17. Rfc1 {[%clk 0:02:31.3]} 17... Rc4 {[%clk 0:01:54.3]} 18. Be2
{[%clk 0:02:00.4]} 18... Rb4 {[%clk 0:01:45.1]} 19. Na2 {[%clk 0:01:39.8]} 19...
Rxc1+ {[%clk 0:01:18.2]} 20. Rxc1 {[%clk 0:01:40.7]} 20... Rxe4 {[%clk
0:01:17.9]} 21. Rc8+ {[%clk 0:01:38.9]} 21... Nf8 {[%clk 0:01:17.7]} 22. Qxd6
{[%clk 0:01:36.4]} 22... Qe1+ {[%clk 0:01:14.7]} 23. Bf1 {[%clk 0:01:32.7]}
23... Rxe3 {[%clk 0:01:15]} 24. fxe3 {[%clk 0:01:33.6]} 24... Qxg3+ {[%clk
0:01:14.7]} 25. Kh1 {[%clk 0:01:32.5]} 25... Ne4 {[%clk 0:01:10.8]} 0-1

[Event "Late-Titled-Tuesday-Blitz-January-16-2024"]
[Site "Chess.com"]
[Date "2024.01.16"]
[Round "8"]
[White "Msb2"]
[Black "Cambek64"]
[Result "1-0"]
[WhiteElo "3020"]
[BlackElo "2478"]
[TimeControl "180+1"]
[EndTime "15:26:10 PST"]
[Termination "Msb2 won by resignation"]

1. d4 {[%clk 0:03:00.9]} 1... c5 {[%clk 0:02:50.7]} 2. d5 {[%clk 0:02:59.2]}
2... e5 {[%clk 0:02:41.9]} 3. e4 {[%clk 0:02:59.5]} 3... d6 {[%clk 0:02:42.3]}
4. Bb5+ {[%clk 0:03:00.2]} 4... Nd7 {[%clk 0:02:41.3]} 5. a4 {[%clk 0:03:01.1]}
5... Nf6 {[%clk 0:02:41.3]} 6. Nc3 {[%clk 0:03:01.5]} 6... Be7 {[%clk
0:02:41.9]} 7. Nf3 {[%clk 0:03:02]} 7... O-O {[%clk 0:02:42.4]} 8. O-O {[%clk
0:03:02.7]} 8... Ne8 {[%clk 0:02:42.7]} 9. Nd2 {[%clk 0:03:02.1]} 9... g6 {[%clk
0:02:43]} 10. Be2 {[%clk 0:03:00.9]} 10... Ng7 {[%clk 0:02:41.5]} 11. Nc4 {[%clk
0:03:01.2]} 11... a6 {[%clk 0:02:40.6]} 12. f4 {[%clk 0:03:01]} 12... f6 {[%clk
0:02:36.1]} 13. Be3 {[%clk 0:02:59.6]} 13... exf4 {[%clk 0:02:35.1]} 14. Bxf4
{[%clk 0:03:00.5]} 14... Ne5 {[%clk 0:02:34.8]} 15. Qd2 {[%clk 0:02:57.3]} 15...
Bd7 {[%clk 0:02:31]} 16. a5 {[%clk 0:02:56.3]} 16... Qc7 {[%clk 0:02:22.1]} 17.
Nb6 {[%clk 0:02:56.3]} 17... Rae8 {[%clk 0:02:20.7]} 18. Kh1 {[%clk 0:02:54.4]}
18... Bd8 {[%clk 0:02:12.7]} 19. h3 {[%clk 0:02:47.7]} 19... f5 {[%clk
0:01:59.6]} 20. Bxe5 {[%clk 0:02:43.1]} 20... Rxe5 {[%clk 0:01:58]} 21. Nc4
{[%clk 0:02:43.7]} 21... Ree8 {[%clk 0:01:53.7]} 22. e5 {[%clk 0:02:42.7]} 22...
dxe5 {[%clk 0:01:52.4]} 23. d6 {[%clk 0:02:43]} 23... Qc6 {[%clk 0:01:51.9]} 24.
Nd5 {[%clk 0:02:23.8]} 24... e4 {[%clk 0:01:43.4]} 25. Rad1 {[%clk 0:02:22.7]}
25... Bf6 {[%clk 0:01:22.9]} 26. Ncb6 {[%clk 0:02:17.1]} 26... Be5 {[%clk
0:01:17.6]} 27. Ne7+ {[%clk 0:02:15.8]} 27... Rxe7 {[%clk 0:01:06.6]} 28. dxe7
{[%clk 0:02:16.7]} 28... Be6 {[%clk 0:00:55.1]} 29. exf8=Q+ {[%clk 0:02:15.3]}
29... Kxf8 {[%clk 0:00:55.6]} 30. Qd8+ {[%clk 0:02:15.6]} 30... Kf7 {[%clk
0:00:55.6]} 31. Bc4 {[%clk 0:02:12.3]} 31... Bd4 {[%clk 0:00:49.6]} 32. c3
{[%clk 0:02:09.7]} 32... Bxc4 {[%clk 0:00:45.7]} 33. Nxc4 {[%clk 0:02:08.1]}
33... Qe6 {[%clk 0:00:45.7]} 34. Nd6+ {[%clk 0:02:05.5]} 1-0

[Event "Late-Titled-Tuesday-Blitz-January-16-2024"]
[Site "Chess.com"]
[Date "2024.01.16"]
[Round "8"]
[White "mortngabriel"]
[Black "Too_Stupid_To_Play"]
[Result "1-0"]
[WhiteElo "2502"]
[BlackElo "2302"]
[TimeControl "180+1"]
[EndTime "15:26:10 PST"]
[Termination "mortngabriel won by resignation"]

1. e4 {[%clk 0:03:00.9]} 1... b6 {[%clk 0:02:42.9]} 2. d4 {[%clk 0:02:59.9]}
2... Bb7 {[%clk 0:02:43.8]} 3. Bd3 {[%clk 0:03:00.5]} 3... Nf6 {[%clk
0:02:43.4]} 4. Qe2 {[%clk 0:02:59.4]} 4... Nc6 {[%clk 0:02:44]} 5. c3 {[%clk
0:02:58.1]} 5... e5 {[%clk 0:02:44.3]} 6. d5 {[%clk 0:02:56.2]} 6... Ne7 {[%clk
0:02:44.9]} 7. Nf3 {[%clk 0:02:56.2]} 7... d6 {[%clk 0:02:45.2]} 8. Bb5+ {[%clk
0:02:54.7]} 8... Nd7 {[%clk 0:02:44.4]} 9. O-O {[%clk 0:02:53.8]} 9... g6 {[%clk
0:02:45]} 10. Bg5 {[%clk 0:02:44.6]} 10... Bg7 {[%clk 0:02:44.4]} 11. Nbd2
{[%clk 0:02:41.9]} 11... h6 {[%clk 0:02:40.6]} 12. Bxe7 {[%clk 0:02:37.4]} 12...
Qxe7 {[%clk 0:02:41.5]} 13. Ba6 {[%clk 0:02:37.7]} 13... Bxa6 {[%clk 0:02:34.3]}
14. Qxa6 {[%clk 0:02:38.6]} 14... O-O {[%clk 0:02:34.2]} 15. Ne1 {[%clk
0:02:30.8]} 15... f5 {[%clk 0:02:34.3]} 16. f3 {[%clk 0:02:30.3]} 16... fxe4
{[%clk 0:02:28.3]} 17. Nxe4 {[%clk 0:02:28.4]} 17... Nc5 {[%clk 0:02:17.7]} 18.
Qe2 {[%clk 0:02:25.4]} 18... Nxe4 {[%clk 0:02:14.9]} 19. Qxe4 {[%clk 0:02:25.3]}
19... Rf4 {[%clk 0:02:15.2]} 20. Qxg6 {[%clk 0:02:23.7]} 20... Raf8 {[%clk
0:02:15.7]} 21. Nd3 {[%clk 0:02:21.4]} 21... R4f6 {[%clk 0:02:13.5]} 22. Qe4
{[%clk 0:02:20.9]} 22... Qf7 {[%clk 0:02:12.1]} 23. c4 {[%clk 0:02:20.2]} 23...
Rg6 {[%clk 0:02:11.2]} 24. b4 {[%clk 0:02:17.3]} 24... Qf5 {[%clk 0:02:04.3]}
25. Qxf5 {[%clk 0:02:12.9]} 25... Rxf5 {[%clk 0:02:05.2]} 26. Rae1 {[%clk
0:02:11]} 26... Rfg5 {[%clk 0:02:01.7]} 27. Rf2 {[%clk 0:01:57]} 27... h5 {[%clk
0:02:01.9]} 28. Re4 {[%clk 0:01:56]} 28... Bh6 {[%clk 0:02:00.9]} 29. Rfe2
{[%clk 0:01:48.6]} 29... Kf7 {[%clk 0:01:54.2]} 30. a4 {[%clk 0:01:39.4]} 30...
Rf5 {[%clk 0:01:52.3]} 31. Kf2 {[%clk 0:01:32.5]} 31... Bg5 {[%clk 0:01:51.4]}
32. b5 {[%clk 0:01:21.6]} 32... h4 {[%clk 0:01:50.7]} 33. Nb4 {[%clk 0:01:13.4]}
33... Rg8 {[%clk 0:01:48.2]} 34. Nc6 {[%clk 0:01:07.9]} 34... Ra8 {[%clk
0:01:48.5]} 35. a5 {[%clk 0:01:06.7]} 35... Bf6 {[%clk 0:01:47.3]} 36. Ra2
{[%clk 0:01:03.9]} 36... bxa5 {[%clk 0:01:47.2]} 37. Rxa5 {[%clk 0:01:03.6]}
37... h3 {[%clk 0:01:46.1]} 38. g4 {[%clk 0:00:57.7]} 1-0

[Event "Late-Titled-Tuesday-Blitz-January-16-2024"]
[Site "Chess.com"]
[Date "2024.01.16"]
[Round "8"]
[White "Elsa167"]
[Black "LevonAronian"]
[Result "0-1"]
[WhiteElo "2861"]
[BlackElo "3094"]
[TimeControl "180+1"]
[EndTime "15:26:15 PST"]
[Termination "LevonAronian won by checkmate"]

1. d4 {[%clk 0:03:00.9]} 1... Nf6 {[%clk 0:02:57.8]} 2. c4 {[%clk 0:03:01.5]}
2... g6 {[%clk 0:02:57.8]} 3. Nc3 {[%clk 0:03:01.4]} 3... Bg7 {[%clk 0:02:58]}
4. e4 {[%clk 0:03:01.6]} 4... O-O {[%clk 0:02:58.3]} 5. Be3 {[%clk 0:03:01.3]}
5... c5 {[%clk 0:02:58]} 6. d5 {[%clk 0:02:47.1]} 6... d6 {[%clk 0:02:56.9]} 7.
h3 {[%clk 0:02:42.2]} 7... e6 {[%clk 0:02:56.9]} 8. Nf3 {[%clk 0:02:42.7]} 8...
a6 {[%clk 0:02:51]} 9. a4 {[%clk 0:02:39.2]} 9... b6 {[%clk 0:02:50.8]} 10. Bd3
{[%clk 0:02:35.2]} 10... Nbd7 {[%clk 0:02:50.1]} 11. O-O {[%clk 0:02:33.2]}
11... Rb8 {[%clk 0:02:46.7]} 12. Qd2 {[%clk 0:02:26.3]} 12... e5 {[%clk
0:02:44.1]} 13. a5 {[%clk 0:02:15.7]} 13... bxa5 {[%clk 0:02:43.3]} 14. Nd1
{[%clk 0:02:14.2]} 14... Rb4 {[%clk 0:02:40.7]} 15. Qc2 {[%clk 0:02:11.7]} 15...
Nh5 {[%clk 0:02:39.9]} 16. Re1 {[%clk 0:01:47.2]} 16... Nf4 {[%clk 0:02:39.9]}
17. Bf1 {[%clk 0:01:47.1]} 17... f5 {[%clk 0:02:40.4]} 18. exf5 {[%clk
0:01:45.3]} 18... gxf5 {[%clk 0:02:40.1]} 19. g3 {[%clk 0:01:29]} 19... Ng6
{[%clk 0:02:19.2]} 20. Ng5 {[%clk 0:01:28.3]} 20... Nf6 {[%clk 0:02:13.1]} 21.
Bd2 {[%clk 0:01:09.7]} 21... e4 {[%clk 0:01:59.1]} 22. Bxb4 {[%clk 0:01:06]}
22... axb4 {[%clk 0:01:58.9]} 23. Ne6 {[%clk 0:01:05.9]} 23... Qe7 {[%clk
0:01:56.4]} 24. Ne3 {[%clk 0:00:56.1]} 24... Bxe6 {[%clk 0:01:47.7]} 25. dxe6
{[%clk 0:00:57]} 25... Qxe6 {[%clk 0:01:47.5]} 26. Rxa6 {[%clk 0:00:53.3]} 26...
f4 {[%clk 0:01:47.9]} 27. Nd5 {[%clk 0:00:52.8]} 27... fxg3 {[%clk 0:01:42.5]}
28. fxg3 {[%clk 0:00:49]} 28... Nxd5 {[%clk 0:01:40.8]} 29. cxd5 {[%clk
0:00:49.9]} 29... Bd4+ {[%clk 0:01:41.2]} 30. Kh1 {[%clk 0:00:48.3]} 30... Rxf1+
{[%clk 0:01:40.9]} 31. Rxf1 {[%clk 0:00:45.4]} 31... Qxh3+ {[%clk 0:01:40.7]}
32. Qh2 {[%clk 0:00:45.1]} 32... Qxf1+ {[%clk 0:01:41.4]} 33. Qg1 {[%clk
0:00:46]} 33... Qxg1# {[%clk 0:01:41.7]} 0-1

[Event "Late-Titled-Tuesday-Blitz-January-16-2024"]
[Site "Chess.com"]
[Date "2024.01.16"]
[Round "8"]
[White "jefferyx"]
[Black "BilodeauA"]
[Result "1/2-1/2"]
[WhiteElo "3000"]
[BlackElo "2924"]
[TimeControl "180+1"]
[EndTime "15:26:22 PST"]
[Termination "Game drawn by repetition"]

1. d4 {[%clk 0:03:00.9]} 1... d5 {[%clk 0:02:42.8]} 2. c4 {[%clk 0:03:00.9]}
2... dxc4 {[%clk 0:02:43.7]} 3. Nf3 {[%clk 0:03:00.2]} 3... a6 {[%clk
0:02:43.8]} 4. e3 {[%clk 0:02:59.5]} 4... Bg4 {[%clk 0:02:44.5]} 5. Bxc4 {[%clk
0:02:59.1]} 5... e6 {[%clk 0:02:45.2]} 6. O-O {[%clk 0:02:59.5]} 6... Nc6 {[%clk
0:02:45.5]} 7. Be2 {[%clk 0:02:59.7]} 7... Nf6 {[%clk 0:02:45.8]} 8. Nbd2 {[%clk
0:03:00.2]} 8... Bd6 {[%clk 0:02:46.3]} 9. h3 {[%clk 0:03:00.8]} 9... Bh5 {[%clk
0:02:46.5]} 10. Nc4 {[%clk 0:03:01.4]} 10... O-O {[%clk 0:02:45.7]} 11. b3
{[%clk 0:03:02]} 11... Nd5 {[%clk 0:02:46.4]} 12. Bb2 {[%clk 0:03:02.6]} 12...
f5 {[%clk 0:02:46.9]} 13. Rc1 {[%clk 0:03:03.2]} 13... Nce7 {[%clk 0:02:46.3]}
14. Nfe5 {[%clk 0:03:00.8]} 14... Bxe2 {[%clk 0:02:46.1]} 15. Qxe2 {[%clk
0:03:01.7]} 15... Qe8 {[%clk 0:02:37.1]} 16. a3 {[%clk 0:03:00]} 16... Rd8
{[%clk 0:02:34.3]} 17. Na5 {[%clk 0:02:47.2]} 17... Bxe5 {[%clk 0:02:30.6]} 18.
dxe5 {[%clk 0:02:46.8]} 18... b6 {[%clk 0:02:17.5]} 19. Nc4 {[%clk 0:02:47.2]}
19... f4 {[%clk 0:02:18]} 20. Qg4 {[%clk 0:02:41.2]} 20... Qg6 {[%clk
0:01:31.5]} 21. e4 {[%clk 0:02:15.2]} 21... Qxe4 {[%clk 0:01:31]} 22. Qxe6+
{[%clk 0:02:15.9]} 22... Kh8 {[%clk 0:01:31.6]} 23. Rfe1 {[%clk 0:02:16.5]}
23... Qd3 {[%clk 0:01:28.1]} 24. b4 {[%clk 0:01:39.9]} 24... f3 {[%clk
0:01:23.1]} 25. g3 {[%clk 0:01:32.1]} 25... Nf5 {[%clk 0:01:17.4]} 26. Red1
{[%clk 0:01:21.1]} 26... Qe4 {[%clk 0:01:16.8]} 27. Re1 {[%clk 0:01:21.3]} 27...
Qd3 {[%clk 0:01:13.9]} 28. Red1 {[%clk 0:01:21.5]} 28... Qe4 {[%clk 0:01:02.4]}
29. Re1 {[%clk 0:01:08.5]} 29... Qd3 {[%clk 0:01:02.5]} 1/2-1/2

[Event "Late-Titled-Tuesday-Blitz-January-16-2024"]
[Site "Chess.com"]
[Date "2024.01.16"]
[Round "8"]
[White "reevecanada"]
[Black "scandalgod"]
[Result "1-0"]
[WhiteElo "2640"]
[BlackElo "2522"]
[TimeControl "180+1"]
[EndTime "15:26:22 PST"]
[Termination "reevecanada won by resignation"]

1. d4 {[%clk 0:02:57.7]} 1... d5 {[%clk 0:02:58.9]} 2. Bf4 {[%clk 0:02:55.2]}
2... Nf6 {[%clk 0:02:58.2]} 3. e3 {[%clk 0:02:55.2]} 3... e6 {[%clk 0:02:57.8]}
4. Bg3 {[%clk 0:02:53.4]} 4... Bd6 {[%clk 0:02:57.9]} 5. Nd2 {[%clk 0:02:52.9]}
5... O-O {[%clk 0:02:57.7]} 6. Bd3 {[%clk 0:02:52.8]} 6... c5 {[%clk 0:02:57.7]}
7. c3 {[%clk 0:02:51.8]} 7... Qc7 {[%clk 0:02:57.3]} 8. f4 {[%clk 0:02:50.9]}
8... b6 {[%clk 0:02:53]} 9. Ngf3 {[%clk 0:02:49.4]} 9... Bb7 {[%clk 0:02:53.4]}
10. O-O {[%clk 0:02:49.6]} 10... Nbd7 {[%clk 0:02:52.3]} 11. Bh4 {[%clk
0:02:48.3]} 11... Ne4 {[%clk 0:02:51.8]} 12. Ne5 {[%clk 0:02:43.4]} 12... f5
{[%clk 0:02:44.4]} 13. Nxe4 {[%clk 0:02:39.1]} 13... fxe4 {[%clk 0:02:43]} 14.
Be2 {[%clk 0:02:39.5]} 14... Nxe5 {[%clk 0:02:42.8]} 15. fxe5 {[%clk 0:02:38.8]}
15... Be7 {[%clk 0:02:42.1]} 16. Bxe7 {[%clk 0:02:39.2]} 16... Qxe7 {[%clk
0:02:41.6]} 17. Qd2 {[%clk 0:02:38.3]} 17... a5 {[%clk 0:02:38.6]} 18. a4 {[%clk
0:02:37.3]} 18... Bc6 {[%clk 0:02:29.8]} 19. b3 {[%clk 0:02:34.1]} 19... Qg5
{[%clk 0:02:22.8]} 20. Rf4 {[%clk 0:02:30.6]} 20... Rxf4 {[%clk 0:02:18.5]} 21.
exf4 {[%clk 0:02:29.6]} 21... Qg6 {[%clk 0:02:16.8]} 22. Qe3 {[%clk 0:02:28.3]}
22... cxd4 {[%clk 0:01:52.1]} 23. cxd4 {[%clk 0:02:22.9]} 23... Rc8 {[%clk
0:01:48.6]} 24. Rc1 {[%clk 0:02:20.5]} 24... Bd7 {[%clk 0:01:40.8]} 25. Rxc8+
{[%clk 0:02:16.4]} 25... Bxc8 {[%clk 0:01:41.1]} 26. Qc1 {[%clk 0:02:16.6]}
26... Bd7 {[%clk 0:01:30.7]} 27. Qc7 {[%clk 0:02:13.1]} 27... Qf7 {[%clk
0:01:29.8]} 28. Qd8+ {[%clk 0:02:11.2]} 28... Be8 {[%clk 0:01:25.2]} 29. Qxb6
{[%clk 0:01:58.4]} 29... h5 {[%clk 0:01:07.8]} 30. g3 {[%clk 0:01:55]} 30... h4
{[%clk 0:01:07.5]} 31. Qxa5 {[%clk 0:01:52.2]} 31... hxg3 {[%clk 0:01:07.1]} 32.
hxg3 {[%clk 0:01:53]} 32... g5 {[%clk 0:01:07.5]} 33. Qd2 {[%clk 0:01:50.7]}
33... Qf5 {[%clk 0:01:03.7]} 34. fxg5 {[%clk 0:01:48.4]} 34... Bg6 {[%clk
0:00:51.8]} 35. Qf4 {[%clk 0:01:47.9]} 35... Qh3 {[%clk 0:00:48.5]} 36. Bg4
{[%clk 0:01:46.8]} 1-0

[Event "Late-Titled-Tuesday-Blitz-January-16-2024"]
[Site "Chess.com"]
[Date "2024.01.16"]
[Round "8"]
[White "WPWPWP-2015"]
[Black "NoHeThTo"]
[Result "1-0"]
[WhiteElo "2555"]
[BlackElo "2697"]
[TimeControl "180+1"]
[EndTime "15:26:23 PST"]
[Termination "WPWPWP-2015 won by resignation"]

1. d4 {[%clk 0:02:59.9]} 1... Nf6 {[%clk 0:02:56.7]} 2. g3 {[%clk 0:02:58.6]}
2... g6 {[%clk 0:02:56.8]} 3. Bg2 {[%clk 0:02:57]} 3... Bg7 {[%clk 0:02:57.3]}
4. e4 {[%clk 0:02:56.8]} 4... d6 {[%clk 0:02:57.4]} 5. Nc3 {[%clk 0:02:55.5]}
5... Nbd7 {[%clk 0:02:56.8]} 6. Nf3 {[%clk 0:02:54.8]} 6... c5 {[%clk
0:02:55.7]} 7. O-O {[%clk 0:02:53.3]} 7... cxd4 {[%clk 0:02:55.5]} 8. Nxd4
{[%clk 0:02:53.6]} 8... O-O {[%clk 0:02:56.1]} 9. Re1 {[%clk 0:02:53.8]} 9... a6
{[%clk 0:02:54.8]} 10. a4 {[%clk 0:02:53.6]} 10... e6 {[%clk 0:02:54.3]} 11. Be3
{[%clk 0:02:48.4]} 11... Qc7 {[%clk 0:02:53.6]} 12. a5 {[%clk 0:02:47.5]} 12...
Rb8 {[%clk 0:02:50]} 13. h3 {[%clk 0:02:39.5]} 13... b5 {[%clk 0:02:43.3]} 14.
Nb3 {[%clk 0:02:35.3]} 14... Rd8 {[%clk 0:02:41.4]} 15. Rc1 {[%clk 0:02:30.9]}
15... Bb7 {[%clk 0:02:40.4]} 16. Qe2 {[%clk 0:02:16.9]} 16... Nc5 {[%clk
0:02:36.7]} 17. e5 {[%clk 0:01:53.8]} 17... Nfd7 {[%clk 0:02:25.2]} 18. exd6
{[%clk 0:01:46.4]} 18... Qxd6 {[%clk 0:02:24.2]} 19. Bxb7 {[%clk 0:01:40.4]}
19... Nxb7 {[%clk 0:02:22.2]} 20. Red1 {[%clk 0:01:36.6]} 20... Qc6 {[%clk
0:02:11.9]} 21. Nd4 {[%clk 0:01:20.7]} 21... Qc7 {[%clk 0:02:09.9]} 22. Nb3
{[%clk 0:01:15.8]} 22... Nxa5 {[%clk 0:02:07.1]} 23. Nxa5 {[%clk 0:01:12.6]}
23... Qxa5 {[%clk 0:02:06.5]} 24. Bg5 {[%clk 0:01:03.6]} 24... Nf6 {[%clk
0:02:00.4]} 25. Rxd8+ {[%clk 0:01:01.7]} 25... Qxd8 {[%clk 0:01:57.7]} 26. Ne4
{[%clk 0:00:57.2]} 26... h6 {[%clk 0:01:54.2]} 27. Rd1 {[%clk 0:00:56.5]} 27...
Qe7 {[%clk 0:01:52.9]} 28. Bxf6 {[%clk 0:00:56.4]} 28... Bxf6 {[%clk 0:01:52.5]}
29. Rd7 {[%clk 0:00:56.1]} 29... Qb4 {[%clk 0:01:47.3]} 30. Nxf6+ {[%clk
0:00:54.1]} 30... Kg7 {[%clk 0:01:44.9]} 31. Qe5 {[%clk 0:00:44.7]} 1-0

[Event "Late-Titled-Tuesday-Blitz-January-16-2024"]
[Site "Chess.com"]
[Date "2024.01.16"]
[Round "8"]
[White "orestn"]
[Black "pooh2012"]
[Result "1-0"]
[WhiteElo "2455"]
[BlackElo "2532"]
[TimeControl "180+1"]
[EndTime "15:26:34 PST"]
[Termination "orestn won on time"]

1. e4 {[%clk 0:03:00.9]} 1... c6 {[%clk 0:02:58]} 2. d4 {[%clk 0:03:00.4]} 2...
d5 {[%clk 0:02:57.3]} 3. Nc3 {[%clk 0:03:01.3]} 3... dxe4 {[%clk 0:02:52.4]} 4.
Nxe4 {[%clk 0:03:02.2]} 4... Nd7 {[%clk 0:02:51.8]} 5. Bd3 {[%clk 0:03:00.3]}
5... Ngf6 {[%clk 0:02:51]} 6. Ng5 {[%clk 0:02:59.7]} 6... e6 {[%clk 0:02:48.2]}
7. Qe2 {[%clk 0:02:56.7]} 7... Bd6 {[%clk 0:02:42.5]} 8. N1f3 {[%clk 0:02:55.8]}
8... h6 {[%clk 0:02:39.4]} 9. Ne4 {[%clk 0:02:56.1]} 9... Nxe4 {[%clk
0:02:38.6]} 10. Qxe4 {[%clk 0:02:55.7]} 10... Qc7 {[%clk 0:02:39]} 11. g3 {[%clk
0:02:53.7]} 11... b6 {[%clk 0:02:30]} 12. Bd2 {[%clk 0:02:50.5]} 12... Bb7
{[%clk 0:02:28]} 13. O-O-O {[%clk 0:02:50]} 13... c5 {[%clk 0:02:20.5]} 14. Qe2
{[%clk 0:02:48.2]} 14... cxd4 {[%clk 0:01:45.2]} 15. Nxd4 {[%clk 0:02:46.9]}
15... Bxh1 {[%clk 0:01:41.8]} 16. Nb5 {[%clk 0:02:46.7]} 16... Qc6 {[%clk
0:01:20.9]} 17. Nxd6+ {[%clk 0:02:46.3]} 17... Qxd6 {[%clk 0:01:19.5]} 18. Rxh1
{[%clk 0:02:46.2]} 18... Qd5 {[%clk 0:00:47.9]} 19. Rd1 {[%clk 0:02:38]} 19...
Qxa2 {[%clk 0:00:45.8]} 20. Bb4 {[%clk 0:02:22.8]} 20... Rc8 {[%clk 0:00:27.5]}
21. Ba3 {[%clk 0:02:19]} 21... Nc5 {[%clk 0:00:17]} 22. Bb5+ {[%clk 0:01:59.2]}
22... Kf8 {[%clk 0:00:10.3]} 23. Bc4 {[%clk 0:01:58.3]} 23... Qa1+ {[%clk
0:00:07.2]} 24. Kd2 {[%clk 0:01:58.4]} 24... Rd8+ {[%clk 0:00:06.9]} 25. Bd3
{[%clk 0:01:58.9]} 25... Qa2 {[%clk 0:00:02.2]} 26. Ke1 {[%clk 0:01:52.3]} 1-0